[Event "Titled Tuesday Blitz May 30 Early 2023"]
[White "Rendle, Thomas E"]
[Black "Dudzinski, Pawel"]
[WhiteFideId "408760"]
[BlackFideId "1117890"]
[WhiteElo "2428"]
[BlackElo "2099"]
[Result "1-0"]
[Round "06"]
[TimeControl "180+2"]
[Date "2023.05.30"]
[WhiteClock "0:00:06"]
[BlackClock "0:00:13"]

1. e4 {[%clk 0:03:00]}  c6 {[%clk 0:02:57]} 2. d4 {[%clk 0:02:53]}  d5 {[%clk 0:02:58]} 3. exd5 {[%clk 0:02:53]}  cxd5 {[%clk 0:02:59]} 4. Nf3 {[%clk 0:02:53]}  Nf6 {[%clk 0:02:55]} 5. Ne5 {[%clk 0:02:53]}  a6 {[%clk 0:02:54]} 6. c4 {[%clk 0:02:48]}  e6 {[%clk 0:02:54]} 7. Nc3 {[%clk 0:02:46]}  Nbd7 {[%clk 0:02:52]} 8. cxd5 {[%clk 0:02:37]}  Nxe5 {[%clk 0:02:48]} 9. dxe5 {[%clk 0:02:36]}  Nxd5 {[%clk 0:02:48]} 10. Nxd5 {[%clk 0:02:36]}  Qxd5 {[%clk 0:02:49]} 11. Qxd5 {[%clk 0:02:34]}  exd5 {[%clk 0:02:49]} 12. Bd3 {[%clk 0:02:32]}  Bb4+ {[%clk 0:02:49]} 13. Bd2 {[%clk 0:02:31]}  Bxd2+ {[%clk 0:02:48]} 14. Kxd2 {[%clk 0:02:32]}  Be6 {[%clk 0:02:49]} 15. Rac1 {[%clk 0:02:23]}  Kd7 {[%clk 0:02:48]} 16. f4 {[%clk 0:02:15]}  g6 {[%clk 0:02:47]} 17. h4 {[%clk 0:02:06]}  h5 {[%clk 0:02:46]} 18. Rc5 {[%clk 0:01:50]}  Rac8 {[%clk 0:02:44]} 19. Rhc1 {[%clk 0:01:49]}  Rxc5 {[%clk 0:02:39]} 20. Rxc5 {[%clk 0:01:50]}  Ra8 {[%clk 0:01:57]} 21. Ke3 {[%clk 0:01:30]}  d4+ {[%clk 0:01:56]} 22. Kxd4 {[%clk 0:01:29]}  Bxa2 {[%clk 0:01:57]} 23. f5 {[%clk 0:01:26]}  gxf5 {[%clk 0:01:09]} 24. Bxf5+ {[%clk 0:01:27]}  Be6 {[%clk 0:01:09]} 25. Be4 {[%clk 0:01:26]}  Rg8 {[%clk 0:01:02]} 26. Bxb7 {[%clk 0:01:19]}  Rg4+ {[%clk 0:01:02]} 27. Ke3 {[%clk 0:01:19]}  Rb4 {[%clk 0:00:39]} 28. Bxa6 {[%clk 0:01:19]}  Rxb2 {[%clk 0:00:34]} 29. Bb5+ {[%clk 0:01:14]}  Kd8 {[%clk 0:00:32]} 30. Be2 {[%clk 0:01:13]}  Rb4 {[%clk 0:00:19]} 31. g3 {[%clk 0:01:09]}  Ke7 {[%clk 0:00:19]} 32. Bxh5 {[%clk 0:01:04]}  Kf8 {[%clk 0:00:17]} 33. Be2 {[%clk 0:00:57]}  Kg7 {[%clk 0:00:17]} 34. Kf2 {[%clk 0:00:50]}  Re4 {[%clk 0:00:16]} 35. Bf3 {[%clk 0:00:49]}  Rb4 {[%clk 0:00:15]} 36. Rc2 {[%clk 0:00:48]}  Rb5 {[%clk 0:00:13]} 37. Re2 {[%clk 0:00:47]}  Rb4 {[%clk 0:00:13]} 38. Re4 {[%clk 0:00:44]}  Rxe4 {[%clk 0:00:13]} 39. Bxe4 {[%clk 0:00:43]}  f6 {[%clk 0:00:14]} 40. exf6+ {[%clk 0:00:37]}  Kxf6 {[%clk 0:00:14]} 41. Kf3 {[%clk 0:00:37]}  Bh3 {[%clk 0:00:14]} 42. Kf4 {[%clk 0:00:36]}  Kg7 {[%clk 0:00:11]} 43. Bf5 {[%clk 0:00:35]}  Bf1 {[%clk 0:00:10]} 44. g4 {[%clk 0:00:35]}  Be2 {[%clk 0:00:10]} 45. g5 {[%clk 0:00:34]}  Bh5 {[%clk 0:00:11]} 46. Bg4 {[%clk 0:00:34]}  Bg6 {[%clk 0:00:11]} 47. h5 {[%clk 0:00:34]}  Be8 {[%clk 0:00:11]} 48. h6+ {[%clk 0:00:32]}  Kh8 {[%clk 0:00:11]} 49. Bf5 {[%clk 0:00:26]}  Bh5 {[%clk 0:00:11]} 50. Ke5 {[%clk 0:00:26]}  Bf7 {[%clk 0:00:11]} 51. Kf6 {[%clk 0:00:26]}  Bh5 {[%clk 0:00:10]} 52. Bg6 {[%clk 0:00:25]}  Be2 {[%clk 0:00:10]} 53. Bf5 {[%clk 0:00:20]}  Bh5 {[%clk 0:00:10]} 54. Bg4 {[%clk 0:00:17]}  Bxg4 {[%clk 0:00:05]} 55. g6 {[%clk 0:00:16]}  Kg8 {[%clk 0:00:03]} 56. h7+ {[%clk 0:00:15]}  Kh8 {[%clk 0:00:03]} 57. Kf7 {[%clk 0:00:14]}  Be6+ {[%clk 0:00:02]} 58. Kxe6 {[%clk 0:00:14]}  Kg7 {[%clk 0:00:01]} 59. Ke7 {[%clk 0:00:12]}  Kh8 {[%clk 0:00:01]} 60. Ke6 {[%clk 0:00:11]}  Kg7 {[%clk 0:00:02]} 61. Kf5 {[%clk 0:00:06]}  Kh8 {[%clk 0:00:03]} 62. Kg5 {[%clk 0:00:06]}  Kg7 {[%clk 0:00:04]} 63. Kg4 {[%clk 0:00:06]}  Kh8 {[%clk 0:00:05]} 64. Kf4 {[%clk 0:00:06]}  Kg7 {[%clk 0:00:06]} 65. Kg5 {[%clk 0:00:03]}  Kh8 {[%clk 0:00:07]} 66. Kf5 {[%clk 0:00:03]}  Kg7 {[%clk 0:00:08]} 67. h8=Q+ {[%clk 0:00:03]}  Kxh8 {[%clk 0:00:09]} 68. Kf6 {[%clk 0:00:03]}  Kg8 {[%clk 0:00:09]} 69. g7 {[%clk 0:00:04]}  Kh7 {[%clk 0:00:09]} 70. Kf7 {[%clk 0:00:04]}  Kh6 {[%clk 0:00:10]} 71. g8=Q {[%clk 0:00:05]}  Kh5 {[%clk 0:00:10]} 72. Kf6 {[%clk 0:00:05]}  Kh4 {[%clk 0:00:10]} 73. Kf5 {[%clk 0:00:05]}  Kh3 {[%clk 0:00:11]} 74. Kf4 {[%clk 0:00:06]}  Kh2 {[%clk 0:00:12]} 75. Kf3 {[%clk 0:00:06]}  Kh1 {[%clk 0:00:13]} 76. Qg2# {[%clk 0:00:06]} 1-0


[Site "https://www.chess.com"]

[Event "Titled Tuesday Blitz May 30 Early 2023"]
[White "Trifan, Andrei Ioan"]
[Black "Williams, Simon K"]
[WhiteFideId "12967068"]
[BlackFideId "404454"]
[WhiteElo "2208"]
[BlackElo "2468"]
[Result "1-0"]
[Round "06"]
[TimeControl "180+2"]
[Date "2023.05.30"]
[WhiteClock "0:00:49"]
[BlackClock "0:00:31"]

1. e4 {[%clk 0:02:59]}  g6 {[%clk 0:02:58]} 2. d4 {[%clk 0:02:59]}  Bg7 {[%clk 0:02:58]} 3. Nc3 {[%clk 0:02:59]}  d6 {[%clk 0:02:58]} 4. f4 {[%clk 0:02:56]}  Nf6 {[%clk 0:02:57]} 5. Nf3 {[%clk 0:02:56]}  O-O {[%clk 0:02:57]} 6. Bd3 {[%clk 0:02:55]}  Nh5 {[%clk 0:02:45]} 7. O-O {[%clk 0:02:47]}  Nc6 {[%clk 0:02:35]} 8. d5 {[%clk 0:02:40]}  Nb4 {[%clk 0:02:32]} 9. Bc4 {[%clk 0:02:21]}  e5 {[%clk 0:02:24]} 10. a3 {[%clk 0:02:08]}  Na6 {[%clk 0:02:23]} 11. f5 {[%clk 0:02:06]}  c6 {[%clk 0:02:14]} 12. dxc6 {[%clk 0:01:45]}  bxc6 {[%clk 0:02:14]} 13. Ng5 {[%clk 0:01:37]}  d5 {[%clk 0:01:45]} 14. exd5 {[%clk 0:01:37]}  Nf4 {[%clk 0:01:42]} 15. Nxf7 {[%clk 0:01:19]}  Rxf7 {[%clk 0:01:31]} 16. dxc6 {[%clk 0:01:17]}  Qb6+ {[%clk 0:00:55]} 17. Kh1 {[%clk 0:01:16]}  Bxf5 {[%clk 0:00:55]} 18. Nd5 {[%clk 0:00:49]}  Qxc6 {[%clk 0:00:31]} 19. Ne7+ {[%clk 0:00:49]} 1-0


[Site "https://www.chess.com"]

[Event "Titled Tuesday Blitz May 30 Early 2023"]
[White "Melikyan, Gnel"]
[Black "Grave, Jacob Templen"]
[WhiteFideId "54109990"]
[BlackFideId "1542656"]
[WhiteElo "2138"]
[BlackElo "2189"]
[Result "1-0"]
[Round "06"]
[TimeControl "180+2"]
[Date "2023.05.30"]
[WhiteClock "0:00:16"]
[BlackClock "0:00:01"]

1. e4 {[%clk 0:03:00]}  c6 {[%clk 0:02:58]} 2. d4 {[%clk 0:02:55]}  d5 {[%clk 0:02:59]} 3. f3 {[%clk 0:02:55]}  e5 {[%clk 0:02:59]} 4. dxe5 {[%clk 0:02:55]}  Bc5 {[%clk 0:02:58]} 5. Nc3 {[%clk 0:02:55]}  Qb6 {[%clk 0:02:53]} 6. Na4 {[%clk 0:02:48]}  Qa5+ {[%clk 0:02:49]} 7. c3 {[%clk 0:02:48]}  Bxg1 {[%clk 0:02:48]} 8. Rxg1 {[%clk 0:02:38]}  dxe4 {[%clk 0:02:49]} 9. f4 {[%clk 0:02:26]}  Ne7 {[%clk 0:02:45]} 10. b4 {[%clk 0:02:25]}  Qc7 {[%clk 0:02:35]} 11. Nc5 {[%clk 0:02:24]}  O-O {[%clk 0:02:19]} 12. Nxe4 {[%clk 0:02:09]}  Nd5 {[%clk 0:02:09]} 13. Qf3 {[%clk 0:01:59]}  a5 {[%clk 0:01:56]} 14. Bd2 {[%clk 0:01:45]}  Re8 {[%clk 0:01:05]} 15. bxa5 {[%clk 0:01:24]}  Qxa5 {[%clk 0:00:37]} 16. c4 {[%clk 0:01:23]}  Qb6 {[%clk 0:00:37]} 17. Qf2 {[%clk 0:00:29]}  Qxf2+ {[%clk 0:00:30]} 18. Kxf2 {[%clk 0:00:28]}  Ne7 {[%clk 0:00:22]} 19. Be2 {[%clk 0:00:18]}  Rd8 {[%clk 0:00:17]} 20. Rgd1 {[%clk 0:00:18]}  Be6 {[%clk 0:00:16]} 21. Bb4 {[%clk 0:00:16]}  Rxd1 {[%clk 0:00:05]} 22. Rxd1 {[%clk 0:00:16]}  Ng6 {[%clk 0:00:01]} 23. Rd8+ {[%clk 0:00:16]} 1-0


[Site "https://www.chess.com"]

[Event "Titled Tuesday Blitz May 30 Early 2023"]
[White "Arabidze, Meri"]
[Black "Kazmin_Semyon"]
[WhiteFideId "13604040"]
[WhiteElo "2405"]
[BlackElo "2433"]
[Result "1-0"]
[Round "06"]
[TimeControl "180+2"]
[Date "2023.05.30"]
[WhiteClock "0:00:34"]
[BlackClock "0:00:04"]

1. Nf3 {[%clk 0:03:00]}  Nf6 {[%clk 0:02:59]} 2. b3 {[%clk 0:03:01]}  d5 {[%clk 0:02:51]} 3. Bb2 {[%clk 0:03:02]}  c5 {[%clk 0:02:51]} 4. e3 {[%clk 0:03:02]}  Nc6 {[%clk 0:02:50]} 5. Bb5 {[%clk 0:03:02]}  Bd7 {[%clk 0:02:49]} 6. O-O {[%clk 0:03:02]}  g6 {[%clk 0:02:43]} 7. Bxc6 {[%clk 0:03:01]}  bxc6 {[%clk 0:02:40]} 8. Ne5 {[%clk 0:03:02]}  Bg7 {[%clk 0:02:40]} 9. f4 {[%clk 0:03:02]}  Ng4 {[%clk 0:02:33]} 10. Nxc6 {[%clk 0:02:42]}  Bxb2 {[%clk 0:02:28]} 11. Nxd8 {[%clk 0:02:41]}  Bxa1 {[%clk 0:02:03]} 12. Nb7 {[%clk 0:02:39]}  Rc8 {[%clk 0:02:00]} 13. c3 {[%clk 0:02:37]}  d4 {[%clk 0:01:37]} 14. Na3 {[%clk 0:02:28]}  Bb2 {[%clk 0:01:36]} 15. Nc4 {[%clk 0:02:27]}  dxc3 {[%clk 0:01:36]} 16. Qc2 {[%clk 0:02:03]}  Be6 {[%clk 0:01:15]} 17. Nba5 {[%clk 0:01:56]}  O-O {[%clk 0:00:58]} 18. dxc3 {[%clk 0:01:53]}  Bf5 {[%clk 0:00:46]} 19. Qxb2 {[%clk 0:01:49]}  Rfd8 {[%clk 0:00:43]} 20. h3 {[%clk 0:01:48]}  Nf6 {[%clk 0:00:43]} 21. Ne5 {[%clk 0:01:38]}  Ne4 {[%clk 0:00:40]} 22. Nac6 {[%clk 0:01:22]}  Rd2 {[%clk 0:00:39]} 23. Nxe7+ {[%clk 0:01:05]}  Kf8 {[%clk 0:00:37]} 24. Qxd2 {[%clk 0:01:05]}  Nxd2 {[%clk 0:00:38]} 25. Nxc8 {[%clk 0:01:05]}  Nxf1 {[%clk 0:00:37]} 26. Kxf1 {[%clk 0:01:03]}  Bxc8 {[%clk 0:00:37]} 27. Nd3 {[%clk 0:01:03]}  c4 {[%clk 0:00:33]} 28. bxc4 {[%clk 0:01:04]}  Ba6 {[%clk 0:00:34]} 29. Nb2 {[%clk 0:01:03]}  Ke7 {[%clk 0:00:34]} 30. Ke2 {[%clk 0:01:01]}  Kd6 {[%clk 0:00:35]} 31. Kd3 {[%clk 0:01:01]}  f5 {[%clk 0:00:30]} 32. g3 {[%clk 0:00:54]}  Bb7 {[%clk 0:00:25]} 33. Kd4 {[%clk 0:00:53]}  h6 {[%clk 0:00:19]} 34. h4 {[%clk 0:00:54]}  Bf3 {[%clk 0:00:18]} 35. Nd3 {[%clk 0:00:54]}  Bh5 {[%clk 0:00:18]} 36. Ne5 {[%clk 0:00:53]}  Ke6 {[%clk 0:00:18]} 37. c5 {[%clk 0:00:53]}  a6 {[%clk 0:00:16]} 38. a3 {[%clk 0:00:53]}  a5 {[%clk 0:00:15]} 39. c4 {[%clk 0:00:50]}  a4 {[%clk 0:00:15]} 40. Nd3 {[%clk 0:00:37]}  Bd1 {[%clk 0:00:11]} 41. Nb4 {[%clk 0:00:37]}  Kd7 {[%clk 0:00:07]} 42. Ke5 {[%clk 0:00:35]}  Ke7 {[%clk 0:00:07]} 43. c6 {[%clk 0:00:35]}  Kd8 {[%clk 0:00:04]} 44. Kd6 {[%clk 0:00:35]}  Kc8 {[%clk 0:00:05]} 45. Nd5 {[%clk 0:00:34]}  Be2 {[%clk 0:00:03]} 46. Ne7+ {[%clk 0:00:34]}  Kb8 {[%clk 0:00:03]} 47. c7+ {[%clk 0:00:34]}  Ka7 {[%clk 0:00:04]} 1-0


[Site "https://www.chess.com"]

[Event "Titled Tuesday Blitz May 30 Early 2023"]
[White "Dehtiarov, Roman"]
[Black "Harriott, Tyrell"]
[WhiteFideId "14186640"]
[BlackFideId "2086484"]
[WhiteElo "2189"]
[BlackElo "2107"]
[Result "1-0"]
[Round "06"]
[TimeControl "180+2"]
[Date "2023.05.30"]
[WhiteClock "0:00:05"]
[BlackClock "0:00:05"]

1. e4 {[%clk 0:03:00]}  e6 {[%clk 0:03:00]} 2. d4 {[%clk 0:02:51]}  d5 {[%clk 0:03:01]} 3. exd5 {[%clk 0:02:50]}  exd5 {[%clk 0:03:02]} 4. Nf3 {[%clk 0:02:51]}  Bd6 {[%clk 0:03:02]} 5. Bd3 {[%clk 0:02:52]}  f5 {[%clk 0:03:01]} 6. O-O {[%clk 0:02:49]}  Nf6 {[%clk 0:03:02]} 7. Bg5 {[%clk 0:02:48]}  O-O {[%clk 0:03:02]} 8. Ne5 {[%clk 0:02:38]}  Qe8 {[%clk 0:02:57]} 9. Nc3 {[%clk 0:02:31]}  Ne4 {[%clk 0:02:56]} 10. Bxe4 {[%clk 0:02:04]}  dxe4 {[%clk 0:02:56]} 11. f4 {[%clk 0:02:03]}  Nc6 {[%clk 0:02:50]} 12. Bh4 {[%clk 0:02:00]}  Ne7 {[%clk 0:02:45]} 13. Bf2 {[%clk 0:01:55]}  c6 {[%clk 0:02:44]} 14. Be3 {[%clk 0:01:51]}  Be6 {[%clk 0:02:43]} 15. Qe2 {[%clk 0:01:51]}  Nd5 {[%clk 0:02:39]} 16. Nxd5 {[%clk 0:01:49]}  Bxd5 {[%clk 0:02:35]} 17. c4 {[%clk 0:01:48]}  Be6 {[%clk 0:02:35]} 18. b3 {[%clk 0:01:39]}  Qe7 {[%clk 0:02:34]} 19. Rad1 {[%clk 0:01:38]}  Kh8 {[%clk 0:02:31]} 20. Kh1 {[%clk 0:01:36]}  Rad8 {[%clk 0:02:27]} 21. Rd2 {[%clk 0:01:35]}  Rf6 {[%clk 0:02:26]} 22. Rfd1 {[%clk 0:01:32]}  Bb4 {[%clk 0:02:26]} 23. Rc2 {[%clk 0:01:27]}  Kg8 {[%clk 0:02:17]} 24. Bd2 {[%clk 0:01:20]}  Bd6 {[%clk 0:02:16]} 25. Bc3 {[%clk 0:01:20]}  Rh6 {[%clk 0:02:13]} 26. g3 {[%clk 0:01:12]}  Bf7 {[%clk 0:02:13]} 27. Nxf7 {[%clk 0:00:59]}  Qxf7 {[%clk 0:02:13]} 28. Qe3 {[%clk 0:00:59]}  Qh5 {[%clk 0:02:11]} 29. Rcd2 {[%clk 0:00:54]}  Re8 {[%clk 0:02:06]} 30. Re1 {[%clk 0:00:39]}  Bc7 {[%clk 0:02:03]} 31. Qe2 {[%clk 0:00:30]}  Qh3 {[%clk 0:02:01]} 32. Qg2 {[%clk 0:00:25]}  Qg4 {[%clk 0:01:58]} 33. Re3 {[%clk 0:00:25]}  Rg6 {[%clk 0:01:56]} 34. Qe2 {[%clk 0:00:21]}  Qh3 {[%clk 0:01:54]} 35. Rd1 {[%clk 0:00:20]}  Qh6 {[%clk 0:01:45]} 36. b4 {[%clk 0:00:19]}  Rg4 {[%clk 0:01:45]} 37. a4 {[%clk 0:00:18]}  Qe6 {[%clk 0:01:43]} 38. d5 {[%clk 0:00:17]}  cxd5 {[%clk 0:01:41]} 39. Rxd5 {[%clk 0:00:17]}  Bb6 {[%clk 0:01:38]} 40. Bd4 {[%clk 0:00:18]}  Rg6 {[%clk 0:01:25]} 41. Qd2 {[%clk 0:00:14]}  Rf6 {[%clk 0:01:14]} 42. Re5 {[%clk 0:00:08]}  Qf7 {[%clk 0:01:03]} 43. c5 {[%clk 0:00:08]}  Rd8 {[%clk 0:00:45]} 44. cxb6 {[%clk 0:00:05]}  Rfd6 {[%clk 0:00:44]} 45. bxa7 {[%clk 0:00:02]}  b6 {[%clk 0:00:43]} 46. Kg2 {[%clk 0:00:01]}  Qxa7 {[%clk 0:00:41]} 47. Qa2+ {[%clk 0:00:01]}  Kh8 {[%clk 0:00:40]} 48. Bc3 {[%clk 0:00:02]}  Qc7 {[%clk 0:00:38]} 49. Be1 {[%clk 0:00:01]}  Qc1 {[%clk 0:00:36]} 50. Bf2 {[%clk 0:00:02]}  Rd2 {[%clk 0:00:31]} 51. Qe6 {[%clk 0:00:01]}  h6 {[%clk 0:00:30]} 52. Qxf5 {[%clk 0:00:01]}  Rxf2+ {[%clk 0:00:23]} 53. Kxf2 {[%clk 0:00:01]}  Rd2+ {[%clk 0:00:18]} 54. Re2 {[%clk 0:00:02]}  Rxe2+ {[%clk 0:00:16]} 55. Kxe2 {[%clk 0:00:02]}  Qc2+ {[%clk 0:00:16]} 56. Kf1 {[%clk 0:00:03]}  Qd1+ {[%clk 0:00:16]} 57. Kg2 {[%clk 0:00:04]}  Qf3+ {[%clk 0:00:14]} 58. Kh3 {[%clk 0:00:04]}  Qf1+ {[%clk 0:00:05]} 59. Kh4 {[%clk 0:00:05]} 1-0


[Site "https://www.chess.com"]

[Event "Titled Tuesday Blitz May 30 Early 2023"]
[White "Lenaerts, Lennert"]
[Black "Korpics, Zsolt"]
[WhiteFideId "211435"]
[BlackFideId "705241"]
[WhiteElo "2334"]
[BlackElo "2367"]
[Result "1-0"]
[Round "06"]
[TimeControl "180+2"]
[Date "2023.05.30"]
[WhiteClock "0:01:44"]
[BlackClock "0:00:01"]

1. d4 {[%clk 0:03:00]}  Nf6 {[%clk 0:03:00]} 2. c4 {[%clk 0:03:00]}  e6 {[%clk 0:03:00]} 3. Nc3 {[%clk 0:03:01]}  Bb4 {[%clk 0:03:00]} 4. g3 {[%clk 0:03:01]}  O-O {[%clk 0:02:50]} 5. Bg2 {[%clk 0:03:01]}  d5 {[%clk 0:02:50]} 6. Nf3 {[%clk 0:03:00]}  c6 {[%clk 0:02:48]} 7. O-O {[%clk 0:03:00]}  h6 {[%clk 0:02:45]} 8. Qb3 {[%clk 0:02:58]}  Be7 {[%clk 0:02:39]} 9. Rd1 {[%clk 0:02:57]}  Nbd7 {[%clk 0:02:37]} 10. Nd2 {[%clk 0:02:57]}  dxc4 {[%clk 0:02:21]} 11. Nxc4 {[%clk 0:02:56]}  Nb6 {[%clk 0:02:22]} 12. e4 {[%clk 0:02:52]}  Nxc4 {[%clk 0:02:20]} 13. Qxc4 {[%clk 0:02:53]}  Bd7 {[%clk 0:01:37]} 14. Bf4 {[%clk 0:02:45]}  b5 {[%clk 0:01:35]} 15. Qb3 {[%clk 0:02:44]}  a5 {[%clk 0:01:33]} 16. a4 {[%clk 0:02:43]}  b4 {[%clk 0:01:32]} 17. Nb1 {[%clk 0:02:41]}  Qb6 {[%clk 0:01:27]} 18. Be3 {[%clk 0:02:34]}  Qc7 {[%clk 0:01:26]} 19. h3 {[%clk 0:02:33]}  Rfc8 {[%clk 0:01:21]} 20. Nd2 {[%clk 0:02:34]}  c5 {[%clk 0:00:55]} 21. Rac1 {[%clk 0:02:33]}  Qa7 {[%clk 0:00:51]} 22. d5 {[%clk 0:02:28]}  Qa6 {[%clk 0:00:35]} 23. Nc4 {[%clk 0:02:25]}  exd5 {[%clk 0:00:25]} 24. exd5 {[%clk 0:02:26]}  Bd6 {[%clk 0:00:25]} 25. Qc2 {[%clk 0:02:16]}  Re8 {[%clk 0:00:21]} 26. Nxd6 {[%clk 0:02:15]}  Qxd6 {[%clk 0:00:20]} 27. Bxc5 {[%clk 0:02:15]}  Qe5 {[%clk 0:00:18]} 28. b3 {[%clk 0:02:13]}  Rac8 {[%clk 0:00:18]} 29. Qd2 {[%clk 0:02:13]}  Bf5 {[%clk 0:00:15]} 30. Bd4 {[%clk 0:02:04]}  Qd6 {[%clk 0:00:14]} 31. Bxf6 {[%clk 0:02:03]}  Qxf6 {[%clk 0:00:15]} 32. Rxc8 {[%clk 0:02:03]}  Rxc8 {[%clk 0:00:15]} 33. d6 {[%clk 0:02:04]}  Rc2 {[%clk 0:00:14]} 34. Qf4 {[%clk 0:01:57]}  Bd7 {[%clk 0:00:12]} 35. Qxf6 {[%clk 0:01:54]}  gxf6 {[%clk 0:00:13]} 36. Bd5 {[%clk 0:01:52]}  Bxh3 {[%clk 0:00:12]} 37. Bc4 {[%clk 0:01:45]}  Bd7 {[%clk 0:00:05]} 38. Bb5 {[%clk 0:01:44]}  Be6 {[%clk 0:00:04]} 39. d7 {[%clk 0:01:43]}  Bxd7 {[%clk 0:00:05]} 40. Rxd7 {[%clk 0:01:43]}  Rc3 {[%clk 0:00:05]} 41. Bc4 {[%clk 0:01:43]}  Kg7 {[%clk 0:00:04]} 42. Rxf7+ {[%clk 0:01:43]}  Kg6 {[%clk 0:00:05]} 43. Ra7 {[%clk 0:01:44]}  h5 {[%clk 0:00:04]} 44. Rxa5 {[%clk 0:01:44]}  h4 {[%clk 0:00:05]} 45. gxh4 {[%clk 0:01:44]}  Rh3 {[%clk 0:00:01]} 46. h5+ {[%clk 0:01:44]} 1-0


[Site "https://www.chess.com"]

[Event "Titled Tuesday Blitz May 30 Early 2023"]
[White "Streltsov, Alexey"]
[Black "Samaganova, Aleksandra"]
[WhiteFideId "24104434"]
[BlackFideId "13800221"]
[WhiteElo "2590"]
[BlackElo "1858"]
[Result "1-0"]
[Round "06"]
[TimeControl "180+2"]
[Date "2023.05.30"]
[WhiteClock "0:00:14"]
[BlackClock "0:00:00"]

1. d4 {[%clk 0:03:00]}  Nf6 {[%clk 0:02:57]} 2. Nc3 {[%clk 0:02:56]}  e6 {[%clk 0:02:57]} 3. e4 {[%clk 0:02:56]}  d5 {[%clk 0:02:57]} 4. e5 {[%clk 0:02:57]}  Nfd7 {[%clk 0:02:57]} 5. f4 {[%clk 0:02:57]}  c5 {[%clk 0:02:57]} 6. Nf3 {[%clk 0:02:58]}  Nc6 {[%clk 0:02:47]} 7. Be3 {[%clk 0:02:58]}  g6 {[%clk 0:02:38]} 8. Qd2 {[%clk 0:02:56]}  a6 {[%clk 0:02:34]} 9. Be2 {[%clk 0:02:47]}  b5 {[%clk 0:02:33]} 10. a3 {[%clk 0:02:42]}  Rb8 {[%clk 0:02:31]} 11. O-O {[%clk 0:02:41]}  cxd4 {[%clk 0:02:14]} 12. Nxd4 {[%clk 0:02:41]}  Nxd4 {[%clk 0:02:09]} 13. Bxd4 {[%clk 0:02:41]}  Bg7 {[%clk 0:02:06]} 14. Kh1 {[%clk 0:02:28]}  O-O {[%clk 0:02:05]} 15. Nd1 {[%clk 0:02:23]}  Nb6 {[%clk 0:01:49]} 16. Ne3 {[%clk 0:02:20]}  Nc4 {[%clk 0:01:47]} 17. Bxc4 {[%clk 0:02:13]}  dxc4 {[%clk 0:01:38]} 18. Ng4 {[%clk 0:02:13]}  Bb7 {[%clk 0:01:31]} 19. Nf6+ {[%clk 0:02:11]}  Kh8 {[%clk 0:01:30]} 20. c3 {[%clk 0:02:11]}  Qc7 {[%clk 0:01:23]} 21. Rae1 {[%clk 0:02:08]}  Rbd8 {[%clk 0:01:21]} 22. Re3 {[%clk 0:02:08]}  Qc6 {[%clk 0:01:04]} 23. Rg1 {[%clk 0:02:04]}  Bxf6 {[%clk 0:00:58]} 24. exf6 {[%clk 0:02:05]}  Rd5 {[%clk 0:00:58]} 25. Re5 {[%clk 0:02:02]}  Rfd8 {[%clk 0:00:48]} 26. Qf2 {[%clk 0:02:01]}  Rxe5 {[%clk 0:00:28]} 27. fxe5 {[%clk 0:01:59]}  Qe4 {[%clk 0:00:26]} 28. Re1 {[%clk 0:01:59]}  Qg4 {[%clk 0:00:23]} 29. Kg1 {[%clk 0:01:51]}  Bd5 {[%clk 0:00:20]} 30. h3 {[%clk 0:01:51]}  Qh5 {[%clk 0:00:18]} 31. Re3 {[%clk 0:01:49]}  a5 {[%clk 0:00:13]} 32. Bb6 {[%clk 0:01:45]}  Ra8 {[%clk 0:00:11]} 33. Kh2 {[%clk 0:01:40]}  b4 {[%clk 0:00:11]} 34. Re1 {[%clk 0:01:02]}  Ra6 {[%clk 0:00:05]} 35. Qc5 {[%clk 0:00:57]}  Ra8 {[%clk 0:00:04]} 36. Qe7 {[%clk 0:00:52]}  Qg5 {[%clk 0:00:03]} 37. Re2 {[%clk 0:00:47]}  Qf4+ {[%clk 0:00:02]} 38. Kg1 {[%clk 0:00:44]}  Qc1+ {[%clk 0:00:02]} 39. Kf2 {[%clk 0:00:35]}  Qf4+ {[%clk 0:00:03]} 40. Kg1 {[%clk 0:00:29]}  Qc1+ {[%clk 0:00:03]} 41. Kh2 {[%clk 0:00:29]}  Qf4+ {[%clk 0:00:04]} 42. Kh1 {[%clk 0:00:21]}  Qf1+ {[%clk 0:00:01]} 43. Kh2 {[%clk 0:00:13]}  Qxe2 {[%clk 0:00:02]} 44. Kg3 {[%clk 0:00:13]}  Qxg2+ {[%clk 0:00:00]} 45. Kh4 {[%clk 0:00:14]} 1-0


[Site "https://www.chess.com"]

[Event "Titled Tuesday Blitz May 30 Early 2023"]
[White "rionelG"]
[Black "Marra, Eduardo da Costa"]
[BlackFideId "2106990"]
[WhiteElo "2140"]
[BlackElo "2252"]
[Result "0-1"]
[Round "06"]
[TimeControl "180+2"]
[Date "2023.05.30"]
[WhiteClock "0:00:00"]
[BlackClock "0:00:10"]

1. e4 {[%clk 0:03:00]}  c5 {[%clk 0:02:59]} 2. g3 {[%clk 0:03:00]}  Nc6 {[%clk 0:02:58]} 3. Bg2 {[%clk 0:03:00]}  d6 {[%clk 0:02:59]} 4. Ne2 {[%clk 0:03:01]}  g6 {[%clk 0:02:59]} 5. c3 {[%clk 0:03:01]}  Bg7 {[%clk 0:02:59]} 6. d4 {[%clk 0:03:02]}  cxd4 {[%clk 0:02:58]} 7. cxd4 {[%clk 0:03:03]}  Nf6 {[%clk 0:02:58]} 8. Nbc3 {[%clk 0:03:04]}  O-O {[%clk 0:02:58]} 9. h3 {[%clk 0:03:04]}  Rb8 {[%clk 0:02:58]} 10. O-O {[%clk 0:03:04]}  Nd7 {[%clk 0:02:55]} 11. Be3 {[%clk 0:03:00]}  Nb6 {[%clk 0:02:50]} 12. b3 {[%clk 0:02:59]}  e6 {[%clk 0:02:29]} 13. d5 {[%clk 0:02:47]}  Ne7 {[%clk 0:02:25]} 14. dxe6 {[%clk 0:02:24]}  Bxe6 {[%clk 0:02:23]} 15. Rc1 {[%clk 0:02:23]}  a6 {[%clk 0:02:03]} 16. Nf4 {[%clk 0:01:48]}  Nbc8 {[%clk 0:01:49]} 17. Bd4 {[%clk 0:01:46]}  Be5 {[%clk 0:01:39]} 18. Qd2 {[%clk 0:01:36]}  Qa5 {[%clk 0:01:25]} 19. Rfd1 {[%clk 0:01:32]}  Bxd4 {[%clk 0:01:14]} 20. Qxd4 {[%clk 0:01:28]}  Qe5 {[%clk 0:01:05]} 21. Qd3 {[%clk 0:00:58]}  Nb6 {[%clk 0:00:54]} 22. Qe3 {[%clk 0:00:51]}  Nd7 {[%clk 0:00:45]} 23. Nfd5 {[%clk 0:00:40]}  Bxd5 {[%clk 0:00:37]} 24. Nxd5 {[%clk 0:00:37]}  Rbc8 {[%clk 0:00:23]} 25. f4 {[%clk 0:00:25]}  Rxc1 {[%clk 0:00:22]} 26. Qxc1 {[%clk 0:00:21]}  Qe6 {[%clk 0:00:21]} 27. Qc3 {[%clk 0:00:18]}  Nxd5 {[%clk 0:00:20]} 28. Rxd5 {[%clk 0:00:17]}  Nf6 {[%clk 0:00:20]} 29. Rd4 {[%clk 0:00:13]}  Re8 {[%clk 0:00:20]} 30. Qd3 {[%clk 0:00:14]}  d5 {[%clk 0:00:18]} 31. e5 {[%clk 0:00:13]}  Nh5 {[%clk 0:00:14]} 32. Kh2 {[%clk 0:00:13]}  Rc8 {[%clk 0:00:12]} 33. Bxd5 {[%clk 0:00:13]}  Qb6 {[%clk 0:00:13]} 34. Bc4 {[%clk 0:00:12]}  Ng7 {[%clk 0:00:12]} 35. Kg2 {[%clk 0:00:09]}  h5 {[%clk 0:00:12]} 36. Rd7 {[%clk 0:00:08]}  Rf8 {[%clk 0:00:11]} 37. Qxg6 {[%clk 0:00:07]}  Qxg6 {[%clk 0:00:09]} 38. Kf3 {[%clk 0:00:03]}  Nf5 {[%clk 0:00:09]} 39. g4 {[%clk 0:00:03]}  hxg4+ {[%clk 0:00:10]} 40. hxg4 {[%clk 0:00:04]}  Nh4+ {[%clk 0:00:10]} 41. Kg3 {[%clk 0:00:04]}  Qh7 {[%clk 0:00:10]} 42. e6 {[%clk 0:00:02]}  Ng6 {[%clk 0:00:10]} 43. f5 {[%clk 0:00:02]}  Qh4+ {[%clk 0:00:10]} 44. Kf3 {[%clk 0:00:02]}  Ne5+ {[%clk 0:00:10]} 45. Kf4 {[%clk 0:00:00]}  Nxd7 {[%clk 0:00:10]} 0-1


[Site "https://www.chess.com"]